[Event "Early-Titled-Tuesday-Blitz-January-23-2024"]
[Site "Chess.com"]
[Date "2024.01.23"]
[Round "7"]
[White "giomar27"]
[Black "hurricane7791"]
[Result "0-1"]
[WhiteElo "2423"]
[BlackElo "2703"]
[TimeControl "180+1"]
[EndTime "9:14:56 PST"]
[Termination "hurricane7791 won by resignation"]

1. d4 {[%clk 0:03:00.9]} 1... Nf6 {[%clk 0:02:58.6]} 2. Nc3 {[%clk 0:03:01.3]}
2... d5 {[%clk 0:02:55.6]} 3. Bf4 {[%clk 0:03:01.7]} 3... c5 {[%clk 0:02:55.3]}
4. e4 {[%clk 0:03:01.8]} 4... cxd4 {[%clk 0:02:55]} 5. Qxd4 {[%clk 0:02:58.8]}
5... Nc6 {[%clk 0:02:55.4]} 6. Bb5 {[%clk 0:02:58]} 6... a6 {[%clk 0:02:52.4]}
7. Bxc6+ {[%clk 0:02:52]} 7... bxc6 {[%clk 0:02:52.2]} 8. exd5 {[%clk
0:02:43.4]} 8... cxd5 {[%clk 0:02:51.1]} 9. Nf3 {[%clk 0:02:42.8]} 9... e6
{[%clk 0:02:51.6]} 10. O-O {[%clk 0:02:42.6]} 10... Be7 {[%clk 0:02:52.2]} 11.
Ne5 {[%clk 0:02:40.5]} 11... Bb7 {[%clk 0:02:52.3]} 12. Na4 {[%clk 0:02:08.1]}
12... O-O {[%clk 0:02:46.2]} 13. Nb6 {[%clk 0:02:07.9]} 13... Rb8 {[%clk
0:02:41.7]} 14. a4 {[%clk 0:01:50.6]} 14... Bd6 {[%clk 0:02:29]} 15. a5 {[%clk
0:01:48.5]} 15... Qc7 {[%clk 0:02:29]} 16. c3 {[%clk 0:01:44.7]} 16... Ne4
{[%clk 0:02:27.2]} 17. Bg3 {[%clk 0:01:31.3]} 17... Rbd8 {[%clk 0:02:20.7]} 18.
Nd3 {[%clk 0:01:24.8]} 18... Nxg3 {[%clk 0:02:19.2]} 19. hxg3 {[%clk 0:01:25.3]}
19... e5 {[%clk 0:02:19]} 20. Qa4 {[%clk 0:01:11.6]} 20... Be7 {[%clk
0:02:02.2]} 21. Nb4 {[%clk 0:01:09.3]} 21... d4 {[%clk 0:01:58.1]} 22. cxd4
{[%clk 0:01:03.2]} 22... Rxd4 {[%clk 0:01:57.7]} 23. Rac1 {[%clk 0:00:50.9]}
23... Qd6 {[%clk 0:01:56.8]} 24. Nc4 {[%clk 0:00:47.5]} 24... Qxb4 {[%clk
0:01:55.4]} 25. Qxb4 {[%clk 0:00:46.5]} 25... Bxb4 {[%clk 0:01:55.4]} 26. Nxe5
{[%clk 0:00:47.2]} 26... Bxa5 {[%clk 0:01:45.6]} 0-1

[Event "Early-Titled-Tuesday-Blitz-January-23-2024"]
[Site "Chess.com"]
[Date "2024.01.23"]
[Round "7"]
[White "atalz0"]
[Black "Lion-Al-Messi"]
[Result "1-0"]
[WhiteElo "2475"]
[BlackElo "2575"]
[TimeControl "180+1"]
[EndTime "9:15:02 PST"]
[Termination "atalz0 won by resignation"]

1. d4 {[%clk 0:03:00.9]} 1... d5 {[%clk 0:02:52]} 2. c4 {[%clk 0:03:00.2]} 2...
c6 {[%clk 0:02:52.1]} 3. e3 {[%clk 0:03:00.5]} 3... Nf6 {[%clk 0:02:52.1]} 4.
Nc3 {[%clk 0:03:00]} 4... e6 {[%clk 0:02:51.4]} 5. b3 {[%clk 0:02:59.8]} 5...
Bb4 {[%clk 0:02:50.5]} 6. Bb2 {[%clk 0:02:59.7]} 6... Ne4 {[%clk 0:02:50.9]} 7.
Ne2 {[%clk 0:03:00]} 7... Qa5 {[%clk 0:02:51.1]} 8. Qc2 {[%clk 0:02:59.7]} 8...
O-O {[%clk 0:02:45.6]} 9. a3 {[%clk 0:02:58.4]} 9... Bxc3+ {[%clk 0:02:42.9]}
10. Nxc3 {[%clk 0:02:59.3]} 10... c5 {[%clk 0:02:42.2]} 11. dxc5 {[%clk
0:02:53.9]} 11... Nxc3 {[%clk 0:02:04.5]} 12. Qxc3 {[%clk 0:02:54.8]} 12...
Qxc3+ {[%clk 0:02:04.1]} 13. Bxc3 {[%clk 0:02:55.1]} 13... Nd7 {[%clk
0:02:00.9]} 14. b4 {[%clk 0:02:52.5]} 14... Ne5 {[%clk 0:02:00.7]} 15. Bxe5
{[%clk 0:02:52]} 15... a5 {[%clk 0:01:58.9]} 16. b5 {[%clk 0:02:49.8]} 16... a4
{[%clk 0:01:56.7]} 17. Be2 {[%clk 0:02:37.5]} 17... Bd7 {[%clk 0:01:54.4]} 18.
Rb1 {[%clk 0:02:33.5]} 18... Rac8 {[%clk 0:01:53.7]} 19. O-O {[%clk 0:02:29.3]}
19... f6 {[%clk 0:01:53.3]} 20. Bd6 {[%clk 0:02:29.4]} 20... Rfd8 {[%clk
0:01:53.6]} 21. Rfd1 {[%clk 0:02:27.2]} 21... dxc4 {[%clk 0:01:52.5]} 22. Bxc4
{[%clk 0:02:26.4]} 22... Kf7 {[%clk 0:01:49.4]} 23. h3 {[%clk 0:02:21.1]} 23...
h5 {[%clk 0:01:45.7]} 24. f4 {[%clk 0:02:20.8]} 24... g6 {[%clk 0:01:45]} 25. g4
{[%clk 0:02:19.8]} 25... hxg4 {[%clk 0:01:44]} 26. hxg4 {[%clk 0:02:20.7]} 26...
f5 {[%clk 0:01:44.7]} 27. gxf5 {[%clk 0:02:16.1]} 27... gxf5 {[%clk 0:01:45.6]}
28. Kf2 {[%clk 0:02:16.2]} 28... Rh8 {[%clk 0:01:39.8]} 29. Rh1 {[%clk
0:02:16.2]} 29... Rxh1 {[%clk 0:01:37.3]} 30. Rxh1 {[%clk 0:02:15.6]} 30... Kg6
{[%clk 0:01:36.7]} 31. Rg1+ {[%clk 0:02:12.9]} 31... Kh6 {[%clk 0:01:36.7]} 32.
Be7 {[%clk 0:02:06]} 32... Re8 {[%clk 0:01:33.9]} 33. Bg5+ {[%clk 0:02:05.9]}
33... Kh5 {[%clk 0:01:34.2]} 34. Rh1+ {[%clk 0:02:02.4]} 34... Kg6 {[%clk
0:01:34.8]} 35. Rd1 {[%clk 0:01:59.1]} 35... Bc8 {[%clk 0:01:34.2]} 36. Rd6
{[%clk 0:01:57.5]} 36... Rh8 {[%clk 0:01:31.7]} 37. Kg2 {[%clk 0:01:54.9]} 37...
Re8 {[%clk 0:01:30.9]} 38. Rd8 {[%clk 0:01:44.8]} 38... Rxd8 {[%clk 0:01:31.3]}
39. Bxd8 {[%clk 0:01:45.3]} 39... Bd7 {[%clk 0:01:32.2]} 40. Kf3 {[%clk
0:01:40.8]} 40... Kf7 {[%clk 0:01:32.1]} 41. Ke2 {[%clk 0:01:40.5]} 41... Ke8
{[%clk 0:01:32.3]} 42. Bf6 {[%clk 0:01:40.5]} 42... Kf7 {[%clk 0:01:32.6]} 43.
Be5 {[%clk 0:01:40.6]} 43... Ke7 {[%clk 0:01:32.9]} 44. Kd3 {[%clk 0:01:40.9]}
44... Kd8 {[%clk 0:01:33.3]} 45. Kc3 {[%clk 0:01:40.8]} 45... Ke7 {[%clk
0:01:32.5]} 46. Kb4 {[%clk 0:01:40.8]} 46... Be8 {[%clk 0:01:30.9]} 47. Kxa4
{[%clk 0:01:40.7]} 1-0

[Event "Early-Titled-Tuesday-Blitz-January-23-2024"]
[Site "Chess.com"]
[Date "2024.01.23"]
[Round "7"]
[White "Logman74"]
[Black "EdmundPlayer"]
[Result "1-0"]
[WhiteElo "2485"]
[BlackElo "2266"]
[TimeControl "180+1"]
[EndTime "9:15:02 PST"]
[Termination "Logman74 won by resignation"]

1. e4 {[%clk 0:03:00.9]} 1... Nf6 {[%clk 0:02:58.8]} 2. e5 {[%clk 0:03:00.6]}
2... Nd5 {[%clk 0:02:58.7]} 3. d4 {[%clk 0:02:59.2]} 3... d6 {[%clk 0:02:59]} 4.
Nf3 {[%clk 0:02:55.3]} 4... Nc6 {[%clk 0:02:58.3]} 5. Be2 {[%clk 0:02:52]} 5...
dxe5 {[%clk 0:02:26]} 6. dxe5 {[%clk 0:02:47.8]} 6... Bf5 {[%clk 0:02:25]} 7. c3
{[%clk 0:02:46]} 7... e6 {[%clk 0:02:21.8]} 8. O-O {[%clk 0:02:44.6]} 8... Be7
{[%clk 0:02:15.7]} 9. h3 {[%clk 0:02:44.1]} 9... Nb6 {[%clk 0:02:12]} 10. Nbd2
{[%clk 0:02:44.4]} 10... Bd3 {[%clk 0:02:10.9]} 11. Nb3 {[%clk 0:02:44.1]} 11...
Bg6 {[%clk 0:01:56.5]} 12. Be3 {[%clk 0:02:42.4]} 12... Qxd1 {[%clk 0:01:49.2]}
13. Rfxd1 {[%clk 0:02:36]} 13... O-O {[%clk 0:01:23]} 14. Bc5 {[%clk 0:02:19.3]}
14... Rfd8 {[%clk 0:01:13.2]} 15. Bxe7 {[%clk 0:02:17.4]} 15... Nxe7 {[%clk
0:01:13.4]} 16. Nbd4 {[%clk 0:01:56.7]} 16... Na4 {[%clk 0:01:04.1]} 17. Rd2
{[%clk 0:01:48.5]} 17... a6 {[%clk 0:01:00]} 18. Rad1 {[%clk 0:01:42.3]} 18...
Kf8 {[%clk 0:00:56.1]} 19. Nxe6+ {[%clk 0:01:39.2]} 19... fxe6 {[%clk
0:00:55.5]} 20. Rxd8+ {[%clk 0:01:39.9]} 20... Rxd8 {[%clk 0:00:55.7]} 21. Rxd8+
{[%clk 0:01:40.6]} 21... Kf7 {[%clk 0:00:56.3]} 22. Rd2 {[%clk 0:01:38.9]} 22...
Nd5 {[%clk 0:00:54.9]} 23. Bc4 {[%clk 0:01:34.9]} 23... Be4 {[%clk 0:00:52.9]}
24. Ng5+ {[%clk 0:01:34.2]} 1-0

[Event "Early-Titled-Tuesday-Blitz-January-23-2024"]
[Site "Chess.com"]
[Date "2024.01.23"]
[Round "7"]
[White "TregubovP"]
[Black "Aash20"]
[Result "1-0"]
[WhiteElo "2674"]
[BlackElo "2500"]
[TimeControl "180+1"]
[EndTime "9:15:05 PST"]
[Termination "TregubovP won by checkmate"]

1. e4 {[%clk 0:03:00.9]} 1... c5 {[%clk 0:02:59.3]} 2. Nf3 {[%clk 0:02:56.4]}
2... d6 {[%clk 0:02:58.6]} 3. d4 {[%clk 0:02:53.1]} 3... cxd4 {[%clk 0:02:58.7]}
4. Qxd4 {[%clk 0:02:53.7]} 4... a6 {[%clk 0:02:58.2]} 5. Nc3 {[%clk 0:02:53.2]}
5... Nc6 {[%clk 0:02:57.8]} 6. Qd3 {[%clk 0:02:53.5]} 6... g6 {[%clk 0:02:57.2]}
7. Be2 {[%clk 0:02:53.4]} 7... Bg7 {[%clk 0:02:57]} 8. O-O {[%clk 0:02:53.6]}
8... Nf6 {[%clk 0:02:57.2]} 9. Nd5 {[%clk 0:02:54.2]} 9... O-O {[%clk
0:02:56.7]} 10. c3 {[%clk 0:02:53.6]} 10... Be6 {[%clk 0:02:55.6]} 11. Bg5
{[%clk 0:02:50.7]} 11... Bxd5 {[%clk 0:02:54.5]} 12. exd5 {[%clk 0:02:50.4]}
12... Nb8 {[%clk 0:02:53.9]} 13. Rfe1 {[%clk 0:02:44.3]} 13... Nbd7 {[%clk
0:02:54.2]} 14. Bf1 {[%clk 0:02:40.4]} 14... Rc8 {[%clk 0:02:52.3]} 15. c4
{[%clk 0:02:29.7]} 15... Re8 {[%clk 0:02:42.1]} 16. g3 {[%clk 0:02:12.5]} 16...
Ng4 {[%clk 0:02:41.2]} 17. Bh3 {[%clk 0:01:56.4]} 17... Nge5 {[%clk 0:02:31.6]}
18. Nxe5 {[%clk 0:01:56.5]} 18... Nxe5 {[%clk 0:02:31.2]} 19. Rxe5 {[%clk
0:01:55.7]} 19... Bxe5 {[%clk 0:02:30.3]} 20. Bxc8 {[%clk 0:01:56.1]} 20... Qxc8
{[%clk 0:02:29]} 21. Qe2 {[%clk 0:01:51.4]} 21... Qc7 {[%clk 0:02:16.7]} 22. Re1
{[%clk 0:01:49.8]} 22... Bg7 {[%clk 0:02:02.9]} 23. b3 {[%clk 0:01:47.5]} 23...
Qd7 {[%clk 0:01:58.7]} 24. Qe4 {[%clk 0:01:40]} 24... Be5 {[%clk 0:01:52.3]} 25.
Kg2 {[%clk 0:01:38.2]} 25... b5 {[%clk 0:01:50.3]} 26. cxb5 {[%clk 0:01:31.3]}
26... axb5 {[%clk 0:01:49.7]} 27. Rc1 {[%clk 0:01:26.7]} 27... Ra8 {[%clk
0:01:47.5]} 28. Rc2 {[%clk 0:01:18.5]} 28... Kg7 {[%clk 0:01:41.1]} 29. Qe3
{[%clk 0:01:16.4]} 29... Qa7 {[%clk 0:01:31.2]} 30. Bh6+ {[%clk 0:01:14.2]}
30... Kg8 {[%clk 0:01:30.2]} 31. Qxa7 {[%clk 0:01:13.8]} 31... Rxa7 {[%clk
0:01:28.2]} 32. Rc8# {[%clk 0:01:13.6]} 1-0

[Event "Early-Titled-Tuesday-Blitz-January-23-2024"]
[Site "Chess.com"]
[Date "2024.01.23"]
[Round "7"]
[White "Smiechu"]
[Black "MightyGMpretender"]
[Result "0-1"]
[WhiteElo "2491"]
[BlackElo "2738"]
[TimeControl "180+1"]
[EndTime "9:15:14 PST"]
[Termination "MightyGMpretender won by resignation"]

1. e4 {[%clk 0:03:00.9]} 1... c5 {[%clk 0:02:59.1]} 2. Nf3 {[%clk 0:03:00.9]}
2... Nc6 {[%clk 0:02:59.7]} 3. d4 {[%clk 0:03:01.5]} 3... cxd4 {[%clk
0:03:00.2]} 4. Nxd4 {[%clk 0:03:02.2]} 4... e5 {[%clk 0:03:00.9]} 5. Nb5 {[%clk
0:03:01.6]} 5... d6 {[%clk 0:03:01.2]} 6. N1c3 {[%clk 0:03:01.7]} 6... a6 {[%clk
0:03:00.9]} 7. Na3 {[%clk 0:03:01.9]} 7... Be6 {[%clk 0:02:57.4]} 8. Nd5 {[%clk
0:03:00.1]} 8... Nf6 {[%clk 0:02:51.8]} 9. Bg5 {[%clk 0:02:55.1]} 9... Qa5+
{[%clk 0:02:44.3]} 10. Bd2 {[%clk 0:02:52.5]} 10... Qd8 {[%clk 0:02:42.9]} 11.
Bg5 {[%clk 0:02:50.8]} 11... Be7 {[%clk 0:02:29]} 12. Bxf6 {[%clk 0:02:48]}
12... Bxf6 {[%clk 0:02:29]} 13. c3 {[%clk 0:02:48.5]} 13... O-O {[%clk
0:02:27.4]} 14. Nc2 {[%clk 0:02:48.4]} 14... Bg5 {[%clk 0:02:24]} 15. h4 {[%clk
0:02:47.8]} 15... Bh6 {[%clk 0:02:24.2]} 16. g4 {[%clk 0:02:38.5]} 16... Bf4
{[%clk 0:02:14.7]} 17. Nxf4 {[%clk 0:02:28.9]} 17... exf4 {[%clk 0:02:14.7]} 18.
f3 {[%clk 0:02:26.5]} 18... d5 {[%clk 0:02:03.7]} 19. Bd3 {[%clk 0:02:10.4]}
19... Qb6 {[%clk 0:02:01]} 20. Qe2 {[%clk 0:01:36.2]} 20... Qxb2 {[%clk
0:01:52.6]} 21. O-O {[%clk 0:01:31.1]} 21... Qxc3 {[%clk 0:01:53]} 22. Rab1
{[%clk 0:01:28.9]} 22... Ne5 {[%clk 0:01:31.7]} 23. Rfd1 {[%clk 0:01:21.9]}
23... Rac8 {[%clk 0:01:20.6]} 24. Rb3 {[%clk 0:01:21]} 24... Qc5+ {[%clk
0:01:18.6]} 25. Kg2 {[%clk 0:01:19.5]} 25... Nxd3 {[%clk 0:01:18.8]} 26. Rd2
{[%clk 0:01:00.4]} 26... Nc1 {[%clk 0:01:17.8]} 0-1

[Event "Early-Titled-Tuesday-Blitz-January-23-2024"]
[Site "Chess.com"]
[Date "2024.01.23"]
[Round "7"]
[White "Irishchessman16"]
[Black "kai_nov"]
[Result "1-0"]
[WhiteElo "2496"]
[BlackElo "2296"]
[TimeControl "180+1"]
[EndTime "9:15:15 PST"]
[Termination "Irishchessman16 won by resignation"]

1. e4 {[%clk 0:03:00.9]} 1... c5 {[%clk 0:02:52]} 2. Nf3 {[%clk 0:02:59.3]} 2...
Nc6 {[%clk 0:02:51.8]} 3. Bc4 {[%clk 0:02:58.8]} 3... e6 {[%clk 0:02:51.3]} 4.
O-O {[%clk 0:02:57.1]} 4... Nge7 {[%clk 0:02:51]} 5. Re1 {[%clk 0:02:54.7]} 5...
d5 {[%clk 0:02:49.7]} 6. exd5 {[%clk 0:02:51.1]} 6... exd5 {[%clk 0:02:45.3]} 7.
Bb5 {[%clk 0:02:45.5]} 7... g6 {[%clk 0:02:32.1]} 8. d4 {[%clk 0:02:41.6]} 8...
c4 {[%clk 0:02:15.1]} 9. Bg5 {[%clk 0:02:29.9]} 9... Be6 {[%clk 0:02:09.5]} 10.
Bf6 {[%clk 0:02:26.5]} 10... Rg8 {[%clk 0:02:07.2]} 11. Ne5 {[%clk 0:02:22.9]}
11... Qc7 {[%clk 0:01:51.3]} 12. c3 {[%clk 0:01:52.8]} 12... O-O-O {[%clk
0:01:43.1]} 13. Bxc6 {[%clk 0:01:42.8]} 13... bxc6 {[%clk 0:01:36.9]} 14. b3
{[%clk 0:01:42.8]} 14... Kb7 {[%clk 0:01:02.7]} 15. bxc4 {[%clk 0:01:37.8]}
15... dxc4 {[%clk 0:00:57.9]} 16. Nd2 {[%clk 0:01:36.7]} 16... Bg7 {[%clk
0:00:39.7]} 17. Rb1+ {[%clk 0:01:28.7]} 17... Ka8 {[%clk 0:00:38.4]} 18. Bxe7
{[%clk 0:01:27.3]} 18... Qxe7 {[%clk 0:00:37.2]} 19. Nxc6 {[%clk 0:01:25.7]} 1-0

[Event "Early-Titled-Tuesday-Blitz-January-23-2024"]
[Site "Chess.com"]
[Date "2024.01.23"]
[Round "7"]
[White "UK_23"]
[Black "Alen_Yeremyann"]
[Result "1-0"]
[WhiteElo "2390"]
[BlackElo "2742"]
[TimeControl "180+1"]
[EndTime "9:15:20 PST"]
[Termination "UK_23 won by resignation"]

1. e4 {[%clk 0:02:56.6]} 1... Nf6 {[%clk 0:02:56.2]} 2. e5 {[%clk 0:02:53.3]}
2... Nd5 {[%clk 0:02:56.4]} 3. d4 {[%clk 0:02:54]} 3... d6 {[%clk 0:02:56.4]} 4.
Nf3 {[%clk 0:02:54.7]} 4... Bg4 {[%clk 0:02:56.2]} 5. exd6 {[%clk 0:02:48.7]}
5... cxd6 {[%clk 0:02:54.8]} 6. Be2 {[%clk 0:02:49.4]} 6... Nc6 {[%clk
0:02:54.5]} 7. O-O {[%clk 0:02:49.4]} 7... g6 {[%clk 0:02:54.6]} 8. c3 {[%clk
0:02:48.5]} 8... Bg7 {[%clk 0:02:54.6]} 9. Re1 {[%clk 0:02:49.2]} 9... O-O
{[%clk 0:02:54.6]} 10. h3 {[%clk 0:02:49.8]} 10... Bxf3 {[%clk 0:02:55]} 11.
Bxf3 {[%clk 0:02:50.7]} 11... Nb6 {[%clk 0:02:55.7]} 12. a4 {[%clk 0:02:49.8]}
12... a5 {[%clk 0:02:55.5]} 13. Na3 {[%clk 0:02:48.8]} 13... Re8 {[%clk
0:02:54.9]} 14. Nb5 {[%clk 0:02:49.1]} 14... Qd7 {[%clk 0:02:54.9]} 15. Bf4
{[%clk 0:02:46.1]} 15... Rad8 {[%clk 0:02:49.9]} 16. Qb3 {[%clk 0:02:42.3]}
16... Qf5 {[%clk 0:02:40.5]} 17. Bh2 {[%clk 0:02:37.5]} 17... e5 {[%clk
0:02:36.6]} 18. Nc7 {[%clk 0:02:21]} 18... Re7 {[%clk 0:00:53.2]} 19. Qxb6
{[%clk 0:02:18.7]} 19... Qd7 {[%clk 0:00:53.8]} 20. Nb5 {[%clk 0:02:08.7]} 20...
f5 {[%clk 0:00:54.3]} 21. dxe5 {[%clk 0:01:57.7]} 21... dxe5 {[%clk 0:00:52.1]}
22. Rad1 {[%clk 0:01:57]} 22... Qe8 {[%clk 0:00:52.5]} 23. Bxc6 {[%clk
0:01:53.6]} 23... Rxd1 {[%clk 0:00:50.1]} 24. Rxd1 {[%clk 0:01:54.5]} 24... bxc6
{[%clk 0:00:50.1]} 25. Rd8 {[%clk 0:01:52.5]} 25... cxb5 {[%clk 0:00:44.6]} 26.
Rxe8+ {[%clk 0:01:49.8]} 26... Rxe8 {[%clk 0:00:45.5]} 27. Qxb5 {[%clk 0:01:47]}
27... Kf7 {[%clk 0:00:44.9]} 28. g4 {[%clk 0:01:43]} 28... f4 {[%clk 0:00:44.8]}
29. f3 {[%clk 0:01:41.7]} 29... g5 {[%clk 0:00:44.8]} 30. Kg2 {[%clk 0:01:41.7]}
30... Rd8 {[%clk 0:00:42.6]} 31. Bg1 {[%clk 0:01:38.4]} 31... Rd2+ {[%clk
0:00:43.1]} 32. Bf2 {[%clk 0:01:38.8]} 1-0

[Event "Early-Titled-Tuesday-Blitz-January-23-2024"]
[Site "Chess.com"]
[Date "2024.01.23"]
[Round "7"]
[White "secretsuperstar7"]
[Black "Witty_Alien"]
[Result "1-0"]
[WhiteElo "2512"]
[BlackElo "2339"]
[TimeControl "180+1"]
[EndTime "9:15:30 PST"]
[Termination "secretsuperstar7 won by resignation"]

1. c4 {[%clk 0:02:29.8]} 1... b5 {[%clk 0:02:30]} 2. cxb5 {[%clk 0:02:26.8]}
2... a6 {[%clk 0:02:30.2]} 3. bxa6 {[%clk 0:02:26.9]} 3... Rxa6 {[%clk
0:02:30.5]} 4. Nc3 {[%clk 0:02:27.2]} 4... Rg6 {[%clk 0:02:28.1]} 5. g3 {[%clk
0:02:26.5]} 5... h5 {[%clk 0:02:27.5]} 6. h4 {[%clk 0:02:25.8]} 6... Bb7 {[%clk
0:02:26]} 7. e4 {[%clk 0:02:25.2]} 7... d5 {[%clk 0:02:23.1]} 8. exd5 {[%clk
0:02:24.5]} 8... Nf6 {[%clk 0:02:11.7]} 9. Bg2 {[%clk 0:02:22.1]} 9... Nbd7
{[%clk 0:02:04.5]} 10. Nge2 {[%clk 0:02:21]} 10... e6 {[%clk 0:01:56]} 11. Nf4
{[%clk 0:02:14.2]} 11... Ne5 {[%clk 0:00:55.7]} 12. Nxg6 {[%clk 0:02:10.9]}
12... Nd3+ {[%clk 0:00:51.1]} 13. Kf1 {[%clk 0:02:10.7]} 13... Ba6 {[%clk
0:00:39.4]} 14. Kg1 {[%clk 0:02:03.4]} 14... Bc5 {[%clk 0:00:10.2]} 15. Qa4+
{[%clk 0:02:02.5]} 15... Nd7 {[%clk 0:00:10.6]} 16. Qxa6 {[%clk 0:01:50]} 16...
fxg6 {[%clk 0:00:10.4]} 17. Qxd3 {[%clk 0:01:48.9]} 17... Qf6 {[%clk 0:00:07.6]}
18. Ne4 {[%clk 0:01:46.8]} 18... Qf5 {[%clk 0:00:03.9]} 19. Nxc5 {[%clk
0:01:45.4]} 19... Qf6 {[%clk 0:00:01.9]} 20. Nxd7 {[%clk 0:01:44.4]} 20... Kxd7
{[%clk 0:00:02.3]} 21. dxe6+ {[%clk 0:01:44.7]} 1-0

[Event "Early-Titled-Tuesday-Blitz-January-23-2024"]
[Site "Chess.com"]
[Date "2024.01.23"]
[Round "7"]
[White "FGHSMN"]
[Black "kleinebeer98"]
[Result "1/2-1/2"]
[WhiteElo "2994"]
[BlackElo "2870"]
[TimeControl "180+1"]
[EndTime "9:15:51 PST"]
[Termination "Game drawn by agreement"]

1. e4 {[%clk 0:03:00]} 1... e5 {[%clk 0:02:57]} 2. Nf3 {[%clk 0:03:00.4]} 2...
Nc6 {[%clk 0:02:57.3]} 3. d4 {[%clk 0:03:00.1]} 3... exd4 {[%clk 0:02:57.6]} 4.
Nxd4 {[%clk 0:03:01]} 4... Nf6 {[%clk 0:02:58.3]} 5. Nxc6 {[%clk 0:03:01.7]}
5... bxc6 {[%clk 0:02:58.6]} 6. Nd2 {[%clk 0:03:00.8]} 6... d5 {[%clk
0:02:58.4]} 7. exd5 {[%clk 0:03:01.4]} 7... cxd5 {[%clk 0:02:58.3]} 8. Bb5+
{[%clk 0:03:02.1]} 8... Bd7 {[%clk 0:02:58.4]} 9. Bxd7+ {[%clk 0:03:02.6]} 9...
Qxd7 {[%clk 0:02:58.7]} 10. O-O {[%clk 0:03:03.5]} 10... Be7 {[%clk 0:02:57.4]}
11. b3 {[%clk 0:03:04.1]} 11... O-O {[%clk 0:02:57]} 12. Bb2 {[%clk 0:03:04.7]}
12... Rfe8 {[%clk 0:02:52.8]} 13. Re1 {[%clk 0:03:02]} 13... Qf5 {[%clk
0:02:49.6]} 14. Nf3 {[%clk 0:02:58.6]} 14... Ne4 {[%clk 0:02:41.5]} 15. h3
{[%clk 0:02:34.7]} 15... h6 {[%clk 0:02:25.6]} 16. Qd3 {[%clk 0:02:32.1]} 16...
Rad8 {[%clk 0:02:15.5]} 17. Re2 {[%clk 0:02:28.7]} 17... Bc5 {[%clk 0:02:02]}
18. Rae1 {[%clk 0:02:22.3]} 18... Qf4 {[%clk 0:01:54]} 19. Bd4 {[%clk
0:02:20.8]} 19... Re6 {[%clk 0:01:40.9]} 20. Bxc5 {[%clk 0:02:15]} 20... Nxc5
{[%clk 0:01:41.8]} 21. Qd4 {[%clk 0:02:14.1]} 21... Qxd4 {[%clk 0:01:34.9]} 22.
Nxd4 {[%clk 0:02:15]} 22... Rxe2 {[%clk 0:01:35.5]} 23. Rxe2 {[%clk 0:02:14.9]}
23... Ne4 {[%clk 0:01:31.5]} 24. Nb5 {[%clk 0:02:03.1]} 24... c5 {[%clk
0:01:13]} 25. Nxa7 {[%clk 0:01:59.7]} 25... Ra8 {[%clk 0:01:12.7]} 26. Nc6
{[%clk 0:02:00.2]} 26... Nc3 {[%clk 0:01:08.3]} 27. Rd2 {[%clk 0:01:28.9]} 27...
Rxa2 {[%clk 0:01:05.8]} 28. Ne7+ {[%clk 0:01:01.2]} 28... Kh7 {[%clk 0:01:05.9]}
29. Nxd5 {[%clk 0:00:55.4]} 29... Nxd5 {[%clk 0:01:06.4]} 30. Rxd5 {[%clk
0:00:56.2]} 30... Rxc2 {[%clk 0:01:07.1]} 31. Rd7 {[%clk 0:00:55.7]} 31... Kg6
{[%clk 0:01:06.1]} 32. Rc7 {[%clk 0:00:56.3]} 1/2-1/2

[Event "Early-Titled-Tuesday-Blitz-January-23-2024"]
[Site "Chess.com"]
[Date "2024.01.23"]
[Round "7"]
[White "BasilSmash"]
[Black "ChessQueen"]
[Result "0-1"]
[WhiteElo "2548"]
[BlackElo "2727"]
[TimeControl "180+1"]
[EndTime "9:15:52 PST"]
[Termination "ChessQueen won on time"]

1. e4 {[%clk 0:02:37.8]} 1... c6 {[%clk 0:02:59.7]} 2. Nf3 {[%clk 0:02:36.6]}
2... d5 {[%clk 0:02:59.7]} 3. d3 {[%clk 0:02:37.2]} 3... Qc7 {[%clk 0:02:58.6]}
4. Nc3 {[%clk 0:02:35.7]} 4... Nf6 {[%clk 0:02:51.2]} 5. e5 {[%clk 0:02:24.8]}
5... Nfd7 {[%clk 0:02:46.8]} 6. d4 {[%clk 0:02:19.7]} 6... e6 {[%clk 0:02:44.9]}
7. Ne2 {[%clk 0:02:11]} 7... c5 {[%clk 0:02:44.5]} 8. c3 {[%clk 0:02:11.5]} 8...
Nc6 {[%clk 0:02:44.6]} 9. g3 {[%clk 0:02:11.3]} 9... f6 {[%clk 0:02:43.8]} 10.
exf6 {[%clk 0:02:07.2]} 10... Nxf6 {[%clk 0:02:39.3]} 11. Bg2 {[%clk 0:02:07]}
11... cxd4 {[%clk 0:02:34.1]} 12. cxd4 {[%clk 0:02:05.8]} 12... Bb4+ {[%clk
0:02:34.1]} 13. Bd2 {[%clk 0:02:05.6]} 13... Bxd2+ {[%clk 0:02:29.9]} 14. Qxd2
{[%clk 0:02:06.5]} 14... O-O {[%clk 0:02:30.2]} 15. O-O {[%clk 0:02:06.4]} 15...
b6 {[%clk 0:02:18.8]} 16. Rac1 {[%clk 0:02:02.2]} 16... Qd6 {[%clk 0:02:18.9]}
17. Rfe1 {[%clk 0:01:59.2]} 17... Ba6 {[%clk 0:02:17.8]} 18. Nc3 {[%clk
0:01:44.6]} 18... Rad8 {[%clk 0:02:08.4]} 19. Ne5 {[%clk 0:01:43]} 19... Ne7
{[%clk 0:02:03.2]} 20. a3 {[%clk 0:01:24.4]} 20... Nf5 {[%clk 0:01:55.1]} 21.
Nd1 {[%clk 0:01:12.8]} 21... Ne4 {[%clk 0:01:52.3]} 22. Bxe4 {[%clk 0:00:52.8]}
22... dxe4 {[%clk 0:01:53.2]} 23. Nc4 {[%clk 0:00:41.7]} 23... Qxd4 {[%clk
0:01:51]} 24. Qxd4 {[%clk 0:00:41.3]} 24... Nxd4 {[%clk 0:01:37.2]} 25. Rxe4
{[%clk 0:00:09.9]} 25... Bxc4 {[%clk 0:01:36.3]} 26. Ne3 {[%clk 0:00:03]} 26...
Ne2+ {[%clk 0:01:35.8]} 0-1